bitfinex/quotes_BTCUSD_20240617
["timestamp","ask_amount","ask_price","bid_price","bid_amount"]
[1718609295784,0.11257711,66260.0,66259.0,1.18505532]
[1718609295991,0.11257711,66260.0,66259.0,1.23555532]
[1718609296443,0.11257711,66260.0,66259.0,1.12335479]
[1718609297951,0.00085,66260.0,66259.0,1.12335479]
[1718609298167,0.11257711,66260.0,66259.0,1.12335479]
[1718609299647,0.00085,66260.0,66259.0,1.12335479]
[1718609299879,0.11257711,66260.0,66259.0,1.12335479]
[1718609300094,0.11257711,66260.0,66259.0,1.11635479]
[1718609300295,0.11257711,66260.0,66259.0,1.26844258]
[1718609300525,0.11257711,66260.0,66259.0,1.27744258]
[1718609302905,0.00085,66260.0,66259.0,1.27744258]
[1718609303855,0.00085,66260.0,66259.0,1.26844258]
[1718609304272,0.00085,66260.0,66259.0,1.62848025]
[1718609304478,0.00085,66260.0,66259.0,1.26844258]
[1718609305357,0.00085,66260.0,66259.0,1.33864849]
[1718609305564,0.11257711,66260.0,66259.0,1.33864849]
[1718609305820,0.11257711,66260.0,66259.0,1.28044258]
[1718609306038,0.11257711,66260.0,66259.0,1.26844258]
[1718609306269,0.00085,66260.0,66259.0,1.28044258]
[1718609306477,0.00085,66260.0,66259.0,1.33863108]
[1718609306909,0.00085,66260.0,66259.0,1.440892]
[1718609307123,0.00085,66260.0,66259.0,1.33863108]
[1718609307340,0.11257711,66260.0,66259.0,1.33863302]
[1718609307630,0.11257711,66260.0,66259.0,1.18654523]
[1718609308133,0.11257711,66260.0,66259.0,1.28896035]
[1718609308970,0.11257711,66260.0,66259.0,1.27696035]
[1718609309183,0.11257711,66260.0,66259.0,1.28696035]
[1718609310089,0.00085,66260.0,66259.0,1.28696035]
[1718609310295,0.00085,66260.0,66259.0,1.43904814]
[1718609310507,0.11257711,66260.0,66259.0,1.43904814]
[1718609310724,0.11257711,66260.0,66259.0,1.44034814]
[1718609310921,0.11257711,66260.0,66259.0,0.97934814]
[1718609311937,0.11257711,66260.0,66259.0,0.82726035]
[1718609312210,0.11257711,66260.0,66259.0,0.47491535]
[1718609312501,0.11257711,66260.0,66259.0,0.47496391]
[1718609312731,0.11257711,66260.0,66259.0,0.52546391]
[1718609312938,0.12194378,66260.0,66259.0,0.52546391]
[1718609313801,0.12194378,66260.0,66259.0,0.6775517]
[1718609314469,0.12194378,66260.0,66259.0,0.5266297]
[1718609314683,0.12194378,66260.0,66259.0,0.37454191]
[1718609314906,0.12194378,66260.0,66259.0,0.17195412]
[1718609315124,0.31724378,66260.0,66259.0,0.22245412]
[1718609317458,0.31724378,66260.0,66259.0,1.13137248]
[1718609317459,0.01021667,66260.0,66259.0,1.13137248]
[1718609317737,0.11257711,66260.0,66259.0,0.98161527]
[1718609319744,0.00085,66260.0,66259.0,0.98161527]
[1718609320579,0.11257711,66260.0,66259.0,0.98161527]
[1718609321012,0.11257711,66260.0,66259.0,0.82952748]
[1718609322417,0.11257711,66260.0,66259.0,0.83046248]
[1718609323731,0.11257711,66260.0,66259.0,1.13230748]
[1718609324398,0.11257711,66260.0,66259.0,0.83046248]
[1718609326188,0.00085,66260.0,66259.0,1.13230748]
[1718609326411,0.00085,66260.0,66259.0,1.28439527]
[1718609327679,0.00085,66260.0,66259.0,1.68624027]
[1718609327906,0.00085,66260.0,66259.0,1.52336758]
[1718609328148,0.00085,66260.0,66259.0,1.68662575]
[1718609328366,0.00085,66260.0,66259.0,1.89132575]
[1718609328577,0.00085,66260.0,66259.0,1.88132575]
[1718609328918,0.00085,66260.0,66259.0,1.89532575]
[1718609329158,0.00085,66260.0,66259.0,1.89542421]
[1718609329771,0.00085,66260.0,66259.0,1.94542421]
[1718609329984,0.00085,66260.0,66259.0,2.20602421]
[1718609330199,0.00085,66260.0,66259.0,3.70602421]
[1718609330422,0.00085,66260.0,66259.0,3.64753531]
[1718609330659,0.00085,66260.0,66259.0,3.70601912]
[1718609331261,0.00085,66260.0,66259.0,3.54266758]
[1718609331435,0.00085,66260.0,66259.0,3.6918638]
[1718609331975,0.00085,66260.0,66259.0,3.70622799]
[1718609332139,0.00085,66260.0,66259.0,4.00807299]
[1718609333013,0.00085,66260.0,66259.0,4.20669923]
[1718609333265,0.00085,66260.0,66259.0,2.5077088]
[1718609334985,0.00085,66260.0,66259.0,2.53493898]
[1718609337374,0.00085,66260.0,66259.0,2.23309398]
[1718609338259,0.00085,66260.0,66259.0,2.27824507]
[1718609338975,0.4481,66282.0,66270.0,0.05]
[1718609339215,0.4481,66282.0,66281.0,0.503117]
[1718609339425,0.4481,66282.0,66281.0,1.25869479]
[1718609339644,0.4481,66282.0,66281.0,1.20819479]
[1718609339872,0.4481,66282.0,66281.0,1.25869479]
[1718609340083,0.10190937,66285.0,66284.0,0.452596]
[1718609340289,0.56560937,66285.0,66284.0,0.65518379]
[1718609340743,0.56560937,66285.0,66271.0,0.4787]
[1718609340744,0.11172711,66282.0,66271.0,0.4787]
[1718609340965,0.07604389,66277.0,66272.0,0.25208779]
[1718609341183,0.54944389,66277.0,66276.0,0.503152]
[1718609341392,0.54944389,66277.0,66276.0,0.98176051]
[1718609342872,0.4734,66277.0,66276.0,0.98176051]
[1718609343073,0.4734,66277.0,66276.0,0.99076051]
[1718609343303,0.4734,66277.0,66276.0,1.52362531]
[1718609343516,0.2654,66277.0,66276.0,1.52362531]
[1718609343763,0.2654,66277.0,66276.0,1.52401314]
[1718609344206,0.2654,66277.0,66276.0,0.92047714]
[1718609344660,0.2654,66277.0,66276.0,1.22202317]
[1718609344875,0.37712711,66277.0,66276.0,0.92025517]
[1718609345090,0.37712711,66277.0,66276.0,0.92025498]
[1718609345300,0.2654,66277.0,66276.0,0.92025498]
[1718609345724,0.2654,66277.0,66276.0,1.22202298]
[1718609347206,0.2654,66277.0,66276.0,0.38859397]
[1718609347401,0.2654,66277.0,66276.0,0.53947797]
[1718609347656,0.2654,66277.0,66276.0,1.14301397]
[1718609348515,0.31172711,66279.0,66278.0,0.452638]
[1718609348516,0.2,66279.0,66278.0,0.452638]
[1718609348727,0.2,66279.0,66278.0,1.02498636]
[1718609348956,0.2,66279.0,66278.0,1.14074287]
[1718609349177,0.2,66279.0,66278.0,0.83898387]
[1718609349390,0.31172711,66279.0,66278.0,0.27058936]
[1718609349608,0.31172711,66279.0,66278.0,0.47196836]
[1718609349822,0.31172711,66279.0,66278.0,0.36046679]
[1718609350066,0.2,66279.0,66278.0,0.36046679]
[1718609350280,0.2,66279.0,66278.0,0.66222579]
[1718609350497,0.31172711,66279.0,66278.0,0.91415446]
[1718609350705,0.2,66279.0,66278.0,0.79610995]
[1718609350929,0.31172711,66279.0,66278.0,0.91277557]
[1718609351389,0.32122977,66279.0,66278.0,0.91277557]
[1718609352213,0.00950266,66279.0,66278.0,1.72439357]
[1718609352216,0.00950266,66279.0,66278.0,1.82439357]
[1718609352768,0.4458,66284.0,66283.0,0.150868]
[1718609352769,0.55752711,66284.0,66283.0,0.150868]
[1718609352973,0.55752711,66284.0,66283.0,0.201368]
[1718609354007,0.55752711,66284.0,66283.0,0.503104]
[1718609354854,0.55752711,66284.0,66283.0,0.452604]
[1718609355070,0.55752711,66284.0,66283.0,0.201368]
[1718609355707,0.55752711,66284.0,66283.0,0.28714161]
[1718609355950,0.4458,66284.0,66283.0,0.59387761]
[1718609356167,0.00018226,66285.0,66284.0,0.452596]
[1718609358182,0.00018226,66285.0,66284.0,0.90641479]
[1718609358439,0.00018226,66285.0,66284.0,1.38274047]
[1718609358651,0.00018226,66285.0,66284.0,1.81835563]
[1718609359095,0.00018226,66285.0,66284.0,1.68447147]
[1718609359503,0.00018226,66285.0,66284.0,1.69347147]
[1718609359920,0.00018226,66285.0,66284.0,1.68447147]
[1718609361385,0.00018226,66285.0,66284.0,1.69647147]
[1718609369935,0.00018226,66285.0,66284.0,1.74647147]
[1718609370376,0.00018226,66285.0,66284.0,1.89855926]
[1718609370586,0.00018226,66285.0,66284.0,1.90003095]
[1718609373904,0.00018226,66285.0,66284.0,1.95053095]
[1718609374576,0.00018226,66285.0,66284.0,1.63933095]
[1718609374789,0.00018226,66285.0,66284.0,1.68983095]
[1718609376294,0.00018226,66285.0,66284.0,1.63933095]
[1718609376495,0.00018226,66285.0,66284.0,1.68983095]
[1718609377652,0.11190937,66285.0,66284.0,0.58255016]
[1718609377855,0.11190937,66285.0,66284.0,1.18601216]
[1718609378271,0.11190937,66285.0,66284.0,0.43168516]
[1718609378272,0.19754458,66285.0,66284.0,0.43168516]
[1718609378474,0.19754458,66285.0,66284.0,0.38118516]
[1718609378728,0.19754458,66285.0,66284.0,0.43168516]
[1718609378931,0.65174458,66285.0,66284.0,0.28118516]
[1718609379145,0.80260758,66285.0,66284.0,0.28118516]
[1718609379368,0.65174458,66285.0,66284.0,0.012]
[1718609379574,0.66174458,66285.0,66284.0,0.012]
[1718609379781,0.81260758,66285.0,66284.0,0.012]
[1718609379982,0.66174458,66285.0,66284.0,0.012]
[1718609380549,1.11433458,66285.0,66284.0,0.012]
[1718609381119,0.81260758,66285.0,66284.0,0.012]
[1718609381328,1.11433458,66285.0,66284.0,0.012]
[1718609381560,0.80260758,66285.0,66284.0,0.012]
[1718609381761,0.56922711,66284.0,66283.0,0.0505]
[1718609382020,0.56922711,66279.0,66278.0,0.01859426]
[1718609382220,0.56922711,66279.0,66277.0,0.11847704]
[1718609382424,0.72969824,66279.0,66278.0,0.11847704]
[1718609382624,0.57882124,66279.0,66278.0,0.0505]
[1718609382888,0.57882124,66279.0,66278.0,0.11847704]
[1718609383308,0.57882124,66279.0,66278.0,0.0505]
[1718609383511,0.57882124,66279.0,66277.0,0.11847704]
[1718609383512,0.11172711,66278.0,66277.0,0.11847704]
[1718609383760,0.20736344,66278.0,66277.0,0.11847704]
[1718609383970,0.35824244,66278.0,66277.0,0.0505]
[1718609384421,0.80384244,66278.0,66277.0,0.0505]
[1718609385426,0.64296344,66278.0,66277.0,0.0505]
[1718609385835,0.65296344,66278.0,66277.0,0.0505]
[1718609386457,0.65296344,66278.0,66277.0,0.0565]
[1718609386881,0.65296344,66278.0,66277.0,0.006]
[1718609387096,0.65296344,66278.0,66277.0,0.0565]
[1718609388022,0.64296344,66278.0,66277.0,0.0565]
[1718609388597,0.80384244,66278.0,66277.0,0.006]
[1718609388796,0.79384244,66278.0,66277.0,0.0565]
[1718609389611,0.64296344,66278.0,66277.0,0.0565]
[1718609389886,0.65296344,66278.0,66277.0,0.0565]
[1718609390577,0.64296344,66278.0,66277.0,0.0565]
[1718609392489,0.64296344,66278.0,66277.0,0.0505]
[1718609392987,0.64296344,66278.0,66277.0,0.0545]
[1718609393412,0.64296344,66278.0,66277.0,0.1757047]
[1718609393765,0.64296344,66278.0,66277.0,0.1777047]
[1718609394182,0.64296344,66278.0,66277.0,0.22238224]
[1718609394499,0.56691955,66278.0,66277.0,0.22238224]
[1718609395315,0.56691955,66278.0,66277.0,0.22038224]
[1718609396343,0.56691955,66278.0,66277.0,0.1262047]
[1718609396596,0.56691955,66278.0,66277.0,0.1767047]
[1718609398386,0.56691955,66278.0,66277.0,0.1757047]
[1718609398798,0.56691955,66278.0,66277.0,0.1767047]
[1718609399222,0.56691955,66278.0,66277.0,0.1757047]
[1718609399451,0.56691955,66278.0,66277.0,0.22018234]
[1718609399636,0.56691955,66278.0,66277.0,0.22118234]
[1718609400091,0.56691955,66278.0,66277.0,0.1757047]
[1718609400322,0.56691955,66278.0,66277.0,0.1767047]
[1718609402074,0.56691955,66278.0,66277.0,0.1757047]
[1718609402704,0.56691955,66278.0,66277.0,0.17570375]
[1718609403199,0.56691955,66278.0,66277.0,0.12520375]
[1718609403592,0.56691955,66278.0,66277.0,0.0505]
[1718609403593,0.57691955,66278.0,66277.0,0.0505]
[1718609403803,0.57691955,66278.0,66275.0,0.01817871]
[1718609403804,0.11172711,66276.0,66275.0,0.01817871]
[1718609404011,0.11172711,66276.0,66275.0,0.32779355]
[1718609404230,0.12172711,66276.0,66275.0,0.42779355]
[1718609404679,0.11172711,66276.0,66275.0,0.42779355]
[1718609404896,0.11172711,66276.0,66275.0,0.42779287]
[1718609405318,0.11172711,66276.0,66275.0,0.4277929]
[1718609405523,0.11172711,66276.0,66275.0,0.4297929]
[1718609409154,0.12172711,66276.0,66275.0,0.12720511]
[1718609409377,1.33154711,66276.0,66275.0,0.12720511]
[1718609410089,1.02977911,66276.0,66275.0,0.12720511]
[1718609410295,0.71801111,66276.0,66275.0,0.12720511]
[1718609410503,1.02977911,66276.0,66275.0,0.12720511]
[1718609410711,0.72801111,66276.0,66275.0,0.13992562]
[1718609411152,0.95429911,66276.0,66275.0,0.13992562]
[1718609411357,0.94429911,66276.0,66275.0,0.13992562]
[1718609411763,0.94429911,66276.0,66275.0,0.13792562]
[1718609411965,0.96129911,66276.0,66275.0,0.13892562]
[1718609412417,0.96129911,66276.0,66275.0,0.12620511]
[1718609413479,0.95429911,66276.0,66275.0,0.12520511]
[1718609413667,1.25606711,66276.0,66275.0,0.12520511]
[1718609414972,1.26006711,66276.0,66275.0,0.12520511]
[1718609415400,1.25606711,66276.0,66275.0,0.12520511]
[1718609415835,1.55983511,66276.0,66275.0,0.12520511]
[1718609416291,0.07604389,66277.0,66267.0,0.01808247]
[1718609416292,0.03624711,66268.0,66267.0,0.01808247]
[1718609416514,0.03624711,66268.0,66267.0,0.17017026]
[1718609416723,0.03624711,66268.0,66264.0,0.05184427]
[1718609416724,1.53651011,66265.0,66264.0,0.00134427]
[1718609416940,1.54651011,66265.0,66264.0,0.00134427]
[1718609417158,1.85963124,66265.0,66264.0,0.00134427]
[1718609417399,1.54651011,66265.0,66264.0,0.00134427]
[1718609417622,1.55638387,66265.0,66264.0,0.00134427]
[1718609419143,1.56638387,66265.0,66264.0,0.00234427]
[1718609419600,0.04512983,66269.0,66264.0,0.91898906]
[1718609419835,0.00085,66276.0,66272.0,0.05]
[1718609420091,0.00085,66276.0,66270.0,0.01]
[1718609420092,0.00085,66276.0,66275.0,1.80297379]
[1718609420301,0.00085,66276.0,66275.0,2.68221662]
[1718609420737,0.00085,66276.0,66275.0,3.65009203]
[1718609420959,0.00085,66276.0,66275.0,3.99361873]
[1718609421183,0.00085,66276.0,66275.0,3.9755467]
[1718609421641,0.00085,66276.0,66275.0,4.0512467]
[1718609422744,0.00185,66276.0,66275.0,4.0652467]
[1718609422952,0.00185,66276.0,66275.0,3.94264329]
[1718609425353,0.00185,66276.0,66275.0,4.24441529]
[1718609425568,0.00185,66276.0,66275.0,4.31025948]
[1718609425785,0.00185,66276.0,66275.0,4.24441529]
[1718609425999,0.00185,66276.0,66275.0,3.98761508]
[1718609426215,0.00185,66276.0,66275.0,3.94264329]
[1718609426678,0.00185,66276.0,66275.0,4.24441529]
[1718609427326,0.1187497,66302.0,66284.0,1.627489]
[1718609427540,0.04270581,66302.0,66284.0,2.53401981]
[1718609427721,0.00855,66302.0,66301.0,0.452481]
[1718609428027,0.00855,66302.0,66301.0,1.03242279]
[1718609428249,0.00855,66302.0,66301.0,1.5751379]
[1718609428895,0.04270581,66302.0,66301.0,1.14828507]
[1718609429138,0.00855,66302.0,66301.0,1.14828507]
[1718609429956,0.00855,66302.0,66301.0,1.44993907]
[1718609431074,0.00855,66302.0,66301.0,1.45893907]
[1718609431310,0.4568,66322.0,66317.0,0.753952]
[1718609431539,0.4568,66322.0,66321.0,0.45202746]
[1718609431785,0.2495,66322.0,66321.0,0.45202746]
[1718609431999,0.28574711,66322.0,66321.0,0.15046446]
[1718609432433,0.2495,66322.0,66321.0,0.45202746]
[1718609432909,0.26214,66327.0,66324.0,0.301549]
[1718609433209,0.03415581,66326.0,66324.0,0.63281108]
[1718609433444,0.00854,66327.0,66324.0,0.99232542]
[1718609433680,0.03415581,66326.0,66324.0,0.93436008]
[1718609433914,0.00854,66327.0,66324.0,0.93436008]
[1718609434139,0.04479711,66325.0,66324.0,0.93436008]
[1718609435002,0.00855,66325.0,66324.0,0.93436008]
[1718609435745,0.00855,66325.0,66324.0,0.94336008]
[1718609436407,0.00855,66325.0,66324.0,1.24490908]
[1718609436620,0.00855,66325.0,66324.0,1.41287442]
[1718609437029,0.00855,66325.0,66324.0,1.86707442]
[1718609437529,0.00855,66325.0,66324.0,3.36707442]
[1718609437978,0.00855,66325.0,66324.0,3.35807442]
[1718609438428,0.00855,66325.0,66324.0,3.42207442]
[1718609438878,0.00018211,66336.0,66329.0,0.01]
[1718609439102,0.00018211,66336.0,66335.0,0.753747]
[1718609439326,0.00018211,66336.0,66335.0,1.43353379]
[1718609439576,0.00018211,66336.0,66335.0,1.57158385]
[1718609440031,0.00018211,66336.0,66335.0,1.27008485]
[1718609440738,0.00018211,66336.0,66335.0,2.03398385]
[1718609440971,0.00018211,66336.0,66335.0,2.10937905]
[1718609441190,0.00018211,66336.0,66335.0,2.11937905]
[1718609441406,0.00018211,66336.0,66335.0,2.10937905]
[1718609442744,0.00018211,66336.0,66335.0,2.11937905]
[1718609442924,0.00018211,66336.0,66335.0,2.13337905]
[1718609443140,0.00018211,66336.0,66335.0,1.82188005]
[1718609443377,0.00018211,66336.0,66335.0,2.12337905]
[1718609443586,0.00018211,66336.0,66335.0,3.32188005]
[1718609444271,0.00018211,66336.0,66335.0,1.82188005]
[1718609445390,0.00018211,66336.0,66335.0,0.26608779]
[1718609445391,0.03642922,66336.0,66335.0,0.26608779]
[1718609445622,0.03642922,66336.0,66335.0,1.04603479]
[1718609446065,0.03642922,66336.0,66335.0,1.34753379]
[1718609446066,0.00018211,66336.0,66335.0,1.34753379]
[1718609446276,0.00018211,66336.0,66335.0,1.33353379]
[1718609446698,0.00018211,66336.0,66335.0,1.03203479]
[1718609446919,0.00018211,66336.0,66335.0,1.27855206]
[1718609447131,0.00018211,66336.0,66335.0,1.58005106]
[1718609447364,0.00018211,66336.0,66335.0,1.77545106]
[1718609447576,0.00018211,66336.0,66335.0,2.16668499]
[1718609448491,0.00018211,66336.0,66335.0,2.59326129]
[1718609448715,0.00018211,66336.0,66335.0,2.30576229]
[1718609449162,0.00018211,66336.0,66335.0,2.34248227]
[1718609449386,0.00854,66343.0,66335.0,2.34248227]
[1718609449387,0.00854,66343.0,66342.0,1.10469093]
[1718609449604,0.00854,66343.0,66342.0,1.86646452]
[1718609449823,0.00854,66343.0,66342.0,2.03319845]
[1718609450306,0.00854,66343.0,66342.0,1.33017559]
[1718609450548,0.00854,66343.0,66342.0,1.40272852]
[1718609450839,0.00854,66343.0,66342.0,1.70419652]
[1718609451093,0.00854,66343.0,66342.0,1.40272852]
[1718609451349,0.00854,66343.0,66342.0,1.70419652]
[1718609451582,0.00854,66343.0,66342.0,1.71419652]
[1718609452702,0.00854,66343.0,66342.0,1.72819652]
[1718609452918,0.00854,66343.0,66342.0,1.60199652]
[1718609453132,0.00854,66343.0,66342.0,1.72819652]
[1718609453359,0.00854,66343.0,66342.0,2.17209652]
[1718609453598,0.00854,66343.0,66342.0,2.18609652]
[1718609454483,0.03415581,66364.0,66343.0,0.41101593]
[1718609454709,0.0020913,66364.0,66363.0,0.301372]
[1718609454936,0.0020913,66365.0,66364.0,0.301368]
[1718609455159,0.39024711,66367.0,66364.0,0.45345479]
[1718609455388,0.39024711,66367.0,66365.0,0.15208779]
[1718609455615,0.39024711,66367.0,66365.0,0.30276879]
[1718609455616,0.0020913,66366.0,66365.0,0.30276879]
[1718609455829,0.0020913,66366.0,66365.0,0.27828779]
[1718609456496,0.0020913,66366.0,66365.0,0.15208779]
[1718609456712,0.0020913,66366.0,66365.0,0.27828779]
[1718609457790,0.0120913,66366.0,66365.0,0.27828779]
[1718609458000,0.07813519,66366.0,66365.0,0.15208779]
[1718609458763,0.150697,66358.0,66349.0,0.150717]
[1718609459016,0.0020913,66355.0,66354.0,0.1262]
[1718609459246,0.0020913,66355.0,66354.0,0.2262]
[1718609459419,0.0020913,66355.0,66354.0,0.35125226]
[1718609459910,0.0020913,66355.0,66354.0,0.50334005]
[1718609460818,0.0120913,66355.0,66354.0,0.50334005]
[1718609461072,1.18626037,66355.0,66354.0,0.12505226]
[1718609461295,0.87485137,66355.0,66354.0,0.12505226]
[1718609461513,0.87485137,66355.0,66341.0,0.0181781]
[1718609461514,0.0020913,66349.0,66341.0,0.0181781]
[1718609461736,0.0020913,66349.0,66348.0,0.15072]
[1718609461951,0.0020913,66349.0,66348.0,0.57723124]
[1718609462169,0.0020913,66351.0,66348.0,0.36502825]
[1718609462399,0.4202,66355.0,66354.0,0.466119]
[1718609462400,0.4222913,66355.0,66354.0,0.466119]
[1718609462631,0.0020913,66355.0,66354.0,1.04469103]
[1718609462848,0.0020913,66355.0,66354.0,0.56075542]
[1718609463078,0.0020913,66355.0,66354.0,0.86216842]
[1718609463310,0.0020913,66355.0,66354.0,0.54675542]
[1718609463778,0.0020913,66355.0,66354.0,0.42786503]
[1718609464004,0.0020913,66355.0,66354.0,0.27715903]
[1718609464223,0.0020913,66355.0,66354.0,0.72927803]
[1718609464440,0.0020913,66355.0,66354.0,1.03069103]
[1718609464874,0.0020913,66355.0,66354.0,0.72927803]
[1718609465093,0.0020913,66355.0,66354.0,0.86768992]
[1718609465533,0.0020913,66355.0,66354.0,0.88168992]
[1718609465777,0.0020913,66355.0,66354.0,0.58027692]
[1718609465998,0.0020913,66355.0,66354.0,0.86768992]
[1718609466259,0.0020913,66355.0,66354.0,0.88570276]
[1718609466442,0.0020913,66355.0,66354.0,0.76129087]
[1718609466649,0.0020913,66355.0,66354.0,0.30917187]
[1718609467081,0.1527953,66355.0,66354.0,0.29115903]
[1718609467293,0.0020913,66355.0,66354.0,0.13907124]
[1718609467498,0.36124237,66355.0,66354.0,0.13907124]
[1718609467710,0.20053837,66355.0,66354.0,0.13907124]
[1718609468551,0.35124237,66355.0,66354.0,0.13907124]
[1718609469003,0.89585137,66355.0,66354.0,0.12507124]
[1718609469220,0.0020913,66343.0,66342.0,0.4787]
[1718609469428,0.0020913,66343.0,66342.0,1.03663897]
[1718609469634,0.4283913,66343.0,66342.0,1.03663897]
[1718609470055,0.4263,66343.0,66342.0,1.48884097]
[1718609470274,0.2332,66343.0,66342.0,1.18298979]
[1718609470478,0.0020913,66345.0,66342.0,1.05225382]
[1718609470685,0.0020913,66343.0,66342.0,0.5927]
[1718609470895,0.0020913,66343.0,66342.0,0.90018316]
[1718609471358,0.0020913,66343.0,66342.0,0.71776517]
[1718609471580,0.0020913,66343.0,66342.0,0.23906517]
[1718609471795,0.0020913,66343.0,66342.0,0.42148316]
[1718609472206,0.0020913,66343.0,66342.0,0.22506517]
[1718609472428,0.0020913,66343.0,66342.0,0.55821716]
[1718609472624,0.0020913,66343.0,66342.0,0.57221716]
[1718609472837,0.2017913,66347.0,66343.0,0.15073]
[1718609473043,0.1997,66347.0,66344.0,0.37715296]
[1718609473249,0.1997,66347.0,66345.0,0.12506517]
[1718609473477,0.2017913,66347.0,66346.0,0.27715296]
[1718609474440,0.73044926,66347.0,66346.0,0.12506517]
[1718609474665,0.20223837,66347.0,66346.0,0.12506517]
[1718609474887,0.20223837,66347.0,66346.0,0.14308765]
[1718609475325,0.2017913,66347.0,66346.0,0.14308765]
[1718609475545,0.2017913,66347.0,66346.0,0.72932596]
[1718609475763,0.1997,66347.0,66346.0,1.04477496]
[1718609475969,0.2521913,66348.0,66346.0,1.04477496]
[1718609475970,0.2521913,66348.0,66347.0,0.150722]
[1718609476190,0.2521913,66348.0,66347.0,0.12506328]
[1718609476406,0.25263837,66348.0,66347.0,0.12506328]
[1718609476653,0.25263837,66348.0,66347.0,0.14308467]
[1718609476654,0.41335837,66348.0,66347.0,0.14308467]
[1718609476860,0.41335837,66348.0,66347.0,0.12506328]
[1718609477491,0.41335837,66348.0,66347.0,0.13906328]
[1718609477954,0.40335837,66348.0,66347.0,0.13906328]
[1718609478170,0.25263837,66348.0,66347.0,0.13906328]
[1718609479038,0.25263837,66348.0,66347.0,0.014]
[1718609479241,0.25263837,66348.0,66347.0,0.13906985]
[1718609479469,0.40335837,66348.0,66347.0,0.13906985]
[1718609479693,0.41335837,66348.0,66347.0,0.13906985]
[1718609479952,0.71479837,66348.0,66347.0,0.13906985]
[1718609480186,0.90029837,66348.0,66347.0,0.014]
[1718609480399,0.90029837,66348.0,66347.0,0.13908333]
[1718609481775,0.90029837,66348.0,66347.0,0.13908314]
[1718609483042,1.20173837,66348.0,66347.0,0.13908314]
[1718609483240,1.50317837,66348.0,66347.0,0.014]
[1718609483998,1.64826197,66348.0,66347.0,0.014]
[1718609484221,1.91591515,66348.0,66347.0,0.014]
[1718609484430,2.39765309,66348.0,66347.0,0.014]
[1718609485071,0.0020913,66331.0,66330.0,0.4787]
[1718609485279,0.0020913,66331.0,66330.0,0.12510881]
[1718609485930,0.0020913,66331.0,66327.0,0.150766]
[1718609486137,0.0020913,66331.0,66328.0,0.2771966]
[1718609486350,0.0020913,66331.0,66330.0,0.014]
[1718609486612,0.0020913,66331.0,66330.0,0.13910881]
[1718609486818,0.0020913,66331.0,66330.0,0.12510881]
[1718609487028,0.0020913,66331.0,66329.0,0.12510881]
[1718609487231,0.0020913,66330.0,66329.0,0.12510881]
[1718609487436,0.0020913,66331.0,66329.0,0.12510484]
[1718609487641,0.0020913,66330.0,66329.0,0.12510484]
[1718609487854,0.0020913,66330.0,66329.0,0.1251053]
[1718609488059,0.0020913,66330.0,66328.0,0.15208779]
[1718609488281,0.00044707,66332.0,66328.0,0.15208779]
[1718609488282,0.0020913,66329.0,66328.0,0.15208779]
[1718609488492,0.0020913,66329.0,66328.0,0.27719399]
[1718609488904,0.0020913,66329.0,66328.0,0.42795899]
[1718609489124,0.0020913,66329.0,66328.0,0.27719399]
[1718609489335,0.0020913,66329.0,66328.0,0.30285279]
[1718609489541,0.0020913,66329.0,66328.0,0.27719216]
[1718609489960,0.0020913,66329.0,66328.0,0.29119216]
[1718609490357,0.0020913,66329.0,66328.0,0.44195716]
[1718609491194,0.0020913,66329.0,66328.0,0.16608779]
[1718609491402,0.0020913,66329.0,66328.0,0.44195754]
[1718609492251,0.0020913,66329.0,66328.0,0.44195595]
[1718609492876,0.0020913,66331.0,66328.0,0.31685279]
[1718609493112,0.0020913,66329.0,66328.0,0.16608779]
[1718609494432,0.0020913,66329.0,66328.0,0.15208779]
[1718609494861,0.1628543,66329.0,66328.0,0.014]
[1718609495212,0.0020913,66329.0,66328.0,0.014]
[1718609495427,0.0020913,66325.0,66324.0,0.453258]
[1718609495643,0.0020913,66325.0,66324.0,0.40379679]
[1718609495863,0.0020913,66325.0,66324.0,0.52890244]
[1718609496083,0.0020913,66325.0,66324.0,0.37812844]
[1718609497004,0.0020913,66326.0,66325.0,0.150772]
[1718609497224,0.0020913,66327.0,66325.0,0.67873844]
[1718609497451,0.0020913,66327.0,66326.0,0.42796344]
[1718609497687,0.00044707,66330.0,66326.0,0.57589344]
[1718609497898,0.00044707,66330.0,66327.0,0.12510565]
[1718609498125,0.0020913,66328.0,66327.0,0.12510565]
[1718609498564,0.0020913,66328.0,66327.0,0.57740819]
[1718609498786,0.00044707,66330.0,66327.0,0.27587019]
[1718609499002,0.0020913,66328.0,66327.0,0.150766]
[1718609499264,0.0020913,66328.0,66327.0,0.28986963]
[1718609499489,0.0020913,66328.0,66327.0,0.13910363]
[1718609500878,0.0020913,66328.0,66327.0,0.12510363]
[1718609501105,0.0020913,66328.0,66327.0,0.13910363]
[1718609503419,0.024815,66330.0,66329.0,0.150763]
[1718609503644,0.024815,66330.0,66329.0,0.27586663]
[1718609503880,0.0269063,66330.0,66329.0,0.27586663]
[1718609504103,0.0269063,66330.0,66329.0,0.42795442]
[1718609504742,0.0269063,66330.0,66329.0,0.44195442]
[1718609505451,0.024815,66330.0,66329.0,0.44195022]
[1718609506312,0.024815,66330.0,66329.0,0.28986243]
[1718609506762,0.024815,66330.0,66329.0,0.59138943]
[1718609507211,0.0269063,66330.0,66329.0,0.59138943]
[1718609507432,0.024815,66330.0,66329.0,0.59138943]
[1718609507881,0.024815,66330.0,66329.0,1.34653122]
[1718609508101,0.024815,66330.0,66329.0,1.39164629]
[1718609508347,0.024815,66330.0,66329.0,1.2395585]
[1718609508563,0.024815,66330.0,66329.0,1.2255585]
[1718609508917,0.024815,66330.0,66329.0,1.2395585]
[1718609510867,0.024815,66330.0,66329.0,1.2355585]
[1718609511091,0.024815,66330.0,66329.0,1.2255585]
[1718609511303,0.024815,66330.0,66329.0,1.39164629]
[1718609512196,0.024815,66330.0,66329.0,1.05570479]
[1718609512816,0.02463365,66330.0,66329.0,1.05570479]
[1718609513442,0.02463365,66330.0,66329.0,1.10610479]
[1718609514272,0.02463365,66330.0,66329.0,1.39363179]
[1718609514491,0.02463365,66330.0,66329.0,1.23523264]
[1718609514712,0.02463365,66330.0,66329.0,1.38271197]
[1718609515315,0.02463365,66330.0,66329.0,1.25762155]
[1718609515764,0.02463365,66330.0,66329.0,1.38271277]
[1718609516187,0.02463365,66330.0,66329.0,1.25762155]
[1718609516402,0.02463365,66330.0,66329.0,1.7610277]
[1718609516606,0.02463365,66330.0,66329.0,1.4604357]
[1718609516757,0.02463365,66330.0,66329.0,1.7619627]
[1718609516962,0.02548365,66330.0,66329.0,1.7745627]
[1718609517377,0.02548365,66330.0,66329.0,1.4630357]
[1718609517603,0.02548365,66330.0,66329.0,1.45499802]
[1718609517758,0.02548365,66330.0,66329.0,1.7745627]